[Event "Open Gent FIDE-rated 2023"]
[Site "Gent, Belgium"]
[Date "2023.07.18"]
[Round "7.1"]
[White "Dreelinck, Adriaan"]
[Black "van Osch, Mees"]
[Result "1/2-1/2"]
[TimeControl "90'+30''"]
[BlackTitle "FM"]
[WhiteElo "2214"]
[BlackElo "2320"]

1. d4 {[%clk 01:30:54]} {[%emt 00:00:04]} Nf6 {[%clk 01:30:56]} {[%emt
00:00:05]} 2. c4 {[%clk 01:31:18]} {[%emt 00:00:06]} g6 {[%clk 01:31:23]}
{[%emt 00:00:03]} 3. Nc3 {[%clk 01:31:36]} {[%emt 00:00:11]} Bg7 {[%clk
01:31:50]} {[%emt 00:00:04]} 4. e4 {[%clk 01:32:01]} {[%emt 00:00:05]} d6
{[%clk 01:32:18]} {[%emt 00:00:03]} 5. Be2 {[%clk 01:32:20]} {[%emt 00:00:10]}
O-O {[%clk 01:32:40]} {[%emt 00:00:07]} 6. Be3 {[%clk 01:32:32]} {[%emt
00:00:18]} e5 {[%clk 01:32:16]} {[%emt 00:00:55]} 7. d5 {[%clk 01:32:52]}
{[%emt 00:00:10]} Na6 {[%clk 01:32:42]} {[%emt 00:00:04]} 8. g4 {[%clk
01:33:01]} {[%emt 00:00:21]} Nc5 {[%clk 01:32:33]} {[%emt 00:00:39]} 9. f3
{[%clk 01:33:15]} {[%emt 00:00:16]} h5 {[%clk 01:32:36]} {[%emt 00:00:27]} 10.
h4 {[%clk 01:32:37]} {[%emt 00:01:07]} hxg4 {[%clk 01:26:22]} {[%emt 00:06:45]}
11. b4 {[%clk 01:32:41]} {[%emt 00:00:26]} Na6 {[%clk 01:26:37]} {[%emt
00:00:15]} 12. fxg4 {[%clk 01:26:25]} {[%emt 00:06:46]} Nxb4 {[%clk 01:26:54]}
{[%emt 00:00:13]} 13. h5 {[%clk 01:18:31]} {[%emt 00:08:24]} gxh5 {[%clk
01:21:43]} {[%emt 00:05:42]} 14. gxh5 {[%clk 01:09:25]} {[%emt 00:09:34]} Nh7
{[%clk 01:21:27]} {[%emt 00:00:46]} 15. a3 {[%clk 00:56:00]} {[%emt 00:13:56]}
Na6 {[%clk 01:21:49]} {[%emt 00:00:08]} 16. Bg4 {[%clk 00:51:41]} {[%emt
00:04:49]} Nc5 {[%clk 01:05:06]} {[%emt 00:17:13]} 17. Ra2 {[%clk 00:41:41]}
{[%emt 00:10:30]} f5 {[%clk 00:43:34]} {[%emt 00:22:02]} 18. Bxf5 {[%clk
00:36:51]} {[%emt 00:05:20]} Bxf5 {[%clk 00:43:53]} {[%emt 00:00:11]} 19. exf5
{[%clk 00:36:16]} {[%emt 00:01:04]} e4 {[%clk 00:42:55]} {[%emt 00:01:28]} 20.
Rg2 {[%clk 00:35:06]} {[%emt 00:01:40]} Kh8 {[%clk 00:39:21]} {[%emt 00:04:04]}
21. Bd4 {[%clk 00:19:13]} {[%emt 00:16:24]} Bxd4 {[%clk 00:34:27]} {[%emt
00:05:24]} 22. Qxd4+ {[%clk 00:19:33]} {[%emt 00:00:09]} Qf6 {[%clk 00:34:51]}
{[%emt 00:00:05]} 23. Nge2 {[%clk 00:19:25]} {[%emt 00:00:38]} Nd3+ {[%clk
00:35:14]} {[%emt 00:00:08]} 24. Kd1 {[%clk 00:17:22]} {[%emt 00:02:33]} Ne5
{[%clk 00:31:44]} {[%emt 00:04:00]} 25. Nf4 {[%clk 00:16:18]} {[%emt 00:01:34]}
Ng5 {[%clk 00:29:37]} {[%emt 00:02:37]} 26. Ng6+ {[%clk 00:14:37]} {[%emt
00:02:11]} Kh7 {[%clk 00:29:54]} {[%emt 00:00:12]} 27. Nxf8+ {[%clk 00:14:32]}
{[%emt 00:00:35]} Rxf8 {[%clk 00:30:20]} {[%emt 00:00:06]} 28. Nxe4 {[%clk
00:14:00]} {[%emt 00:01:01]} Nxe4 {[%clk 00:30:46]} {[%emt 00:00:04]} 29. Qxe4
{[%clk 00:14:19]} {[%emt 00:00:11]} Qxf5 {[%clk 00:30:07]} {[%emt 00:01:10]} 30.
Qxf5+ {[%clk 00:11:42]} {[%emt 00:03:07]} Rxf5 {[%clk 00:30:33]} {[%emt
00:00:03]} 31. h6 {[%clk 00:11:27]} {[%emt 00:00:45]} Nxc4 {[%clk 00:24:53]}
{[%emt 00:06:09]} 32. Rg7+ {[%clk 00:11:28]} {[%emt 00:00:30]} Kh8 {[%clk
00:25:22]} {[%emt 00:00:01]} 33. h7 {[%clk 00:08:22]} {[%emt 00:03:35]} Rf1+
{[%clk 00:20:19]} {[%emt 00:05:33]} 34. Rxf1 {[%clk 00:08:29]} {[%emt
00:00:23]} Kxg7 {[%clk 00:20:48]} {[%emt 00:00:01]} 35. Rf7+ {[%clk 00:08:12]}
{[%emt 00:00:47]} Kh8 {[%clk 00:21:17]} {[%emt 00:00:01]} 36. Ke2 {[%clk
00:06:02]} {[%emt 00:02:39]} Nxa3 {[%clk 00:21:28]} {[%emt 00:00:20]} 37. Kd3
{[%clk 00:05:17]} {[%emt 00:01:15]} b5 {[%clk 00:20:05]} {[%emt 00:01:53]} 38.
Rxc7 {[%clk 00:05:07]} {[%emt 00:00:40]} a5 {[%clk 00:20:24]} {[%emt 00:00:11]}
39. Kc3 {[%clk 00:04:21]} {[%emt 00:01:17]} b4+ {[%clk 00:17:19]} {[%emt
00:03:35]} 40. Kb3 {[%clk 00:04:44]} {[%emt 00:00:07]} Nb5 {[%clk 00:17:45]}
{[%emt 00:00:03]} 41. Rb7 {[%clk 00:03:35]} {[%emt 00:01:39]} Nc3 {[%clk
00:11:12]} {[%emt 00:07:03]} 42. Kc4 {[%clk 00:03:58]} {[%emt 00:00:07]} Nd1
{[%clk 00:11:20]} {[%emt 00:00:23]} 43. Kb5 {[%clk 00:02:27]} {[%emt 00:02:01]}
b3 {[%clk 00:10:39]} {[%emt 00:01:10]} 44. Kxa5 {[%clk 00:02:38]} {[%emt
00:00:19]} b2 {[%clk 00:08:15]} {[%emt 00:02:54]} 45. Ka6 {[%clk 00:02:46]}
{[%emt 00:00:22]} Nc3 {[%clk 00:07:46]} {[%emt 00:00:59]} 46. Rxb2 {[%clk
00:03:05]} {[%emt 00:00:10]} Nxd5 {[%clk 00:08:13]} {[%emt 00:00:03]} 47. Rd2
{[%clk 00:03:07]} {[%emt 00:00:28]} Nf6 {[%clk 00:06:18]} {[%emt 00:02:26]} 48.
Kb6 {[%clk 00:02:09]} {[%emt 00:01:28]} Kxh7 {[%clk 00:06:24]} {[%emt
00:00:23]} 49. Kc6 {[%clk 00:01:35]} {[%emt 00:01:04]} Kg6 {[%clk 00:06:37]}
{[%emt 00:00:17]} 50. Rg2 {[%clk 00:01:40]} {[%emt 00:00:24]} Kf5 {[%clk
00:07:00]} {[%emt 00:00:08]} 51. Kxd6 {[%clk 00:01:56]} {[%emt 00:00:14]} Ne4+
{[%clk 00:07:23]} {[%emt 00:00:07]} 52. Kd5 {[%clk 00:02:11]} {[%emt 00:00:15]}
Nf6+ {[%clk 00:07:49]} {[%emt 00:00:04]} 53. Kd4 {[%clk 00:02:31]} {[%emt
00:00:10]} Ke6 {[%clk 00:08:13]} {[%emt 00:00:06]} 54. Rg5 {[%clk 00:02:17]}
{[%emt 00:00:44]} Nd7 {[%clk 00:08:03]} {[%emt 00:00:40]} 55. Ra5 {[%clk
00:01:29]} {[%emt 00:01:17]} Nf6 {[%clk 00:08:23]} {[%emt 00:00:10]} 56. Re5+
{[%clk 00:01:45]} {[%emt 00:00:14]} Kd6 {[%clk 00:08:41]} {[%emt 00:00:13]} 57.
Re1 {[%clk 00:01:49]} {[%emt 00:00:25]} Nd7 {[%clk 00:08:46]} {[%emt 00:00:25]}
58. Rh1 {[%clk 00:01:17]} {[%emt 00:01:02]} Ke6 {[%clk 00:09:02]} {[%emt
00:00:14]} 59. Rh5 {[%clk 00:00:50]} {[%emt 00:00:57]} Nf6 {[%clk 00:09:06]}
{[%emt 00:00:26]} 60. Rg5 {[%clk 00:00:44]} {[%emt 00:00:36]} Nd7 {[%clk
00:09:27]} {[%emt 00:00:10]} 61. Ke4 {[%clk 00:00:47]} {[%emt 00:00:27]} Nf6+
{[%clk 00:09:48]} {[%emt 00:00:08]} 62. Kf4 {[%clk 00:01:03]} {[%emt 00:00:14]}
Nd5+ {[%clk 00:10:11]} {[%emt 00:00:07]} 63. Kf3 {[%clk 00:00:52]} {[%emt
00:00:41]} Nf6 {[%clk 00:10:32]} {[%emt 00:00:09]} 64. Ra5 {[%clk 00:00:57]}
{[%emt 00:00:25]} Nd5 {[%clk 00:10:36]} {[%emt 00:00:26]} 65. Ke4 {[%clk
00:01:09]} {[%emt 00:00:18]} Nf6+ {[%clk 00:11:03]} {[%emt 00:00:03]} 66. Kd4
{[%clk 00:01:33]} {[%emt 00:00:06]} Nd7 {[%clk 00:11:20]} {[%emt 00:00:14]} 67.
Ra7 {[%clk 00:01:19]} {[%emt 00:00:43]} Nf6 {[%clk 00:11:42]} {[%emt 00:00:08]}
68. Ra6+ {[%clk 00:01:20]} {[%emt 00:00:29]} Kf5 {[%clk 00:12:07]} {[%emt
00:00:05]} 69. Rd6 {[%clk 00:01:07]} {[%emt 00:00:43]} Ng4 {[%clk 00:11:53]}
{[%emt 00:00:44]} 70. Rd5+ {[%clk 00:01:08]} {[%emt 00:00:30]} Kf4 {[%clk
00:12:19]} {[%emt 00:00:04]} 71. Rh5 {[%clk 00:01:01]} {[%emt 00:00:37]} Nf6
{[%clk 00:12:39]} {[%emt 00:00:10]} 72. Rh1 {[%clk 00:01:05]} {[%emt 00:00:25]}
Kf5 {[%clk 00:13:05]} {[%emt 00:00:05]} 73. Re1 {[%clk 00:01:14]} {[%emt
00:00:21]} Ng4 {[%clk 00:12:53]} {[%emt 00:00:42]} 74. Kd5 {[%clk 00:01:23]}
{[%emt 00:00:20]} Nf6+ {[%clk 00:13:16]} {[%emt 00:00:07]} 75. Kd4 {[%clk
00:01:41]} {[%emt 00:00:13]} Ng4 {[%clk 00:13:42]} {[%emt 00:00:05]} 76. Re4
{[%clk 00:01:41]} {[%emt 00:00:30]} Nf6 {[%clk 00:13:33]} {[%emt 00:00:38]} 77.
Re5+ {[%clk 00:02:04]} {[%emt 00:00:08]} Kf4 {[%clk 00:13:58]} {[%emt
00:00:05]} 78. Ra5 {[%emt 00:00:45]} Ng4 {[%clk 00:14:18]} {[%emt 00:00:04]} 79.
Ra1 {[%clk 00:02:00]} {[%emt 00:00:24]} Kf5 {[%clk 00:14:28]} {[%emt 00:00:21]}
80. Rf1+ {[%clk 00:01:59]} {[%emt 00:00:31]} Ke6 {[%clk 00:14:45]} {[%emt
00:00:13]} 81. Rf4 {[%clk 00:02:10]} {[%emt 00:00:19]} Nf6 {[%clk 00:15:10]}
{[%emt 00:00:06]} 82. Rxf6+ {[%clk 00:02:11]} {[%emt 00:00:29]} Kxf6 {[%emt
00:00:01]} 1/2-1/2

[Event "Open Gent FIDE-rated 2023"]
[Site "Gent, Belgium"]
[Date "2023.07.18"]
[Round "7.2"]
[White "Driessen, Marcus"]
[Black "Decker, Nils"]
[Result "0-1"]
[TimeControl "90'+30''"]
[BlackFideId "4699670"]
[WhiteElo "2098"]
[BlackElo "2109"]

1. e4 {[%clk 01:30:56]} {[%emt 00:00:03]} c5 {[%clk 01:30:08]} {[%emt
00:00:53]} 2. Nf3 {[%clk 01:30:52]} {[%emt 00:00:33]} e6 {[%clk 01:30:20]}
{[%emt 00:00:18]} 3. d4 {[%clk 01:31:10]} {[%emt 00:00:12]} cxd4 {[%clk
01:30:47]} {[%emt 00:00:04]} 4. Nxd4 {[%clk 01:31:35]} {[%emt 00:00:04]} Nc6
{[%clk 01:31:12]} {[%emt 00:00:05]} 5. Nxc6 {[%clk 01:28:55]} {[%emt 00:03:10]}
bxc6 {[%clk 01:31:24]} {[%emt 00:00:17]} 6. Bd3 {[%clk 01:28:31]} {[%emt
00:00:54]} Nf6 {[%clk 01:29:28]} {[%emt 00:02:26]} 7. Qe2 {[%clk 01:24:59]}
{[%emt 00:04:02]} d5 {[%clk 01:27:49]} {[%emt 00:02:09]} 8. Nd2 {[%clk
01:23:45]} {[%emt 00:01:44]} Nd7 {[%clk 01:16:56]} {[%emt 00:11:23]} 9. c4
{[%clk 01:20:08]} {[%emt 00:04:06]} Ne5 {[%clk 01:01:37]} {[%emt 00:15:49]} 10.
Bb1 {[%clk 01:18:30]} {[%emt 00:02:09]} dxc4 {[%clk 00:54:37]} {[%emt
00:07:30]} 11. O-O {[%clk 01:15:22]} {[%emt 00:03:37]} Ba6 {[%clk 00:50:55]}
{[%emt 00:04:12]} 12. Rd1 {[%clk 01:10:30]} {[%emt 00:05:21]} Bc5 {[%clk
00:28:59]} {[%emt 00:22:27]} 13. Nf3 {[%clk 00:50:57]} {[%emt 00:20:02]} Qf6
{[%clk 00:23:00]} {[%emt 00:06:29]} 14. Nxe5 {[%clk 00:45:11]} {[%emt
00:06:16]} Qxe5 {[%clk 00:23:25]} {[%emt 00:00:05]} 15. Bc2 {[%clk 00:44:43]}
{[%emt 00:00:58]} O-O {[%clk 00:22:32]} {[%emt 00:01:24]} 16. g3 {[%clk
00:43:59]} {[%emt 00:01:14]} Rfd8 {[%clk 00:19:10]} {[%emt 00:03:52]} 17. Kg2
{[%clk 00:42:20]} {[%emt 00:02:09]} Rxd1 {[%clk 00:18:38]} {[%emt 00:01:03]} 18.
Bxd1 {[%clk 00:41:24]} {[%emt 00:01:25]} Rb8 {[%clk 00:12:08]} {[%emt
00:07:01]} 19. Qc2 {[%clk 00:40:08]} {[%emt 00:01:45]} Qd6 {[%clk 00:06:17]}
{[%emt 00:06:19]} 20. Be2 {[%clk 00:34:11]} {[%emt 00:06:29]} Qd4 {[%clk
00:06:33]} {[%emt 00:00:15]} 21. Bf1 {[%clk 00:34:21]} {[%emt 00:00:19]} h6
{[%clk 00:00:37]} {[%emt 00:06:26]} 22. Rb1 {[%clk 00:25:55]} {[%emt 00:08:56]}
Rb4 {[%clk 00:00:56]} {[%emt 00:00:11]} 23. Be3 {[%clk 00:24:10]} {[%emt
00:02:15]} Qe5 {[%clk 00:00:43]} {[%emt 00:00:43]} 24. a3 {[%clk 00:22:50]}
{[%emt 00:01:50]} Rb3 {[%clk 00:00:34]} {[%emt 00:00:39]} 25. Bxc4 {[%clk
00:22:19]} {[%emt 00:01:01]} Bxc4 {[%clk 00:00:45]} {[%emt 00:00:19]} 26. Qxc4
{[%clk 00:22:41]} {[%emt 00:00:07]} Bxe3 {[%clk 00:00:44]} {[%emt 00:00:32]} 27.
fxe3 {[%clk 00:08:49]} {[%emt 00:14:21]} Rxe3 {[%clk 00:01:05]} {[%emt
00:00:09]} 28. Rf1 {[%clk 00:06:28]} {[%emt 00:02:51]} Rxe4 {[%clk 00:01:16]}
{[%emt 00:00:19]} 29. Qxc6 {[%clk 00:06:32]} {[%emt 00:00:27]} Qxb2+ {[%clk
00:00:34]} {[%emt 00:01:12]} 30. Rf2 {[%clk 00:06:52]} {[%emt 00:00:09]} Re2
{[%clk 00:00:39]} {[%emt 00:00:26]} 31. Qa8+ {[%clk 00:06:55]} {[%emt
00:00:27]} Kh7 {[%clk 00:00:57]} {[%emt 00:00:12]} 32. Qxa7 {[%clk 00:07:22]}
{[%emt 00:00:03]} Rxf2+ {[%clk 00:00:37]} {[%emt 00:00:50]} 33. Qxf2 {[%clk
00:07:45]} {[%emt 00:00:07]} Qxa3 {[%clk 00:00:47]} {[%emt 00:00:20]} 34. Qxf7
{[%clk 00:08:06]} {[%emt 00:00:09]} Qa2+ {[%clk 00:00:45]} {[%emt 00:00:31]} 35.
Kg1 {[%clk 00:07:02]} {[%emt 00:01:33]} Qb1+ {[%clk 00:01:00]} {[%emt
00:00:16]} 36. Kf2 {[%clk 00:05:41]} {[%emt 00:01:51]} Qf5+ {[%clk 00:00:48]}
{[%emt 00:00:42]} 37. Qxf5+ {[%clk 00:06:07]} {[%emt 00:00:04]} exf5 {[%clk
00:01:13]} {[%emt 00:00:05]} 38. Kf3 {[%clk 00:06:33]} {[%emt 00:00:04]} g5
{[%clk 00:00:47]} {[%emt 00:00:56]} 39. Ke3 {[%clk 00:06:32]} {[%emt 00:00:31]}
Kg6 {[%clk 00:01:01]} {[%emt 00:00:16]} 40. Kd4 {[%clk 00:06:57]} {[%emt
00:00:04]} Kh5 {[%clk 00:00:41]} {[%emt 00:00:51]} 41. h3 {[%clk 00:06:27]}
{[%emt 00:01:00]} f4 {[%clk 00:00:47]} {[%emt 00:00:24]} 42. gxf4 {[%clk
00:06:52]} {[%emt 00:00:06]} gxf4 {[%clk 00:01:12]} {[%emt 00:00:05]} 43. Ke4
{[%clk 00:07:13]} {[%emt 00:00:08]} Kg5 {[%clk 00:01:27]} {[%emt 00:00:14]} 0-1

[Event "Open Gent FIDE-rated 2023"]
[Site "Gent, Belgium"]
[Date "2023.07.18"]
[Round "7.3"]
[White "Dreelinck, Jacob"]
[Black "De Block, Yordi"]
[Result "1/2-1/2"]
[TimeControl "90'+30''"]
[WhiteElo "2089"]
[BlackElo "2082"]

1. Nf3 {[%clk 01:30:58]} Nf6 {[%clk 01:28:40]} {[%emt 00:02:21]} 2. g3 {[%clk
01:31:13]} {[%emt 00:00:15]} b6 {[%clk 01:28:52]} {[%emt 00:00:17]} 3. Bg2
{[%clk 01:31:33]} {[%emt 00:00:10]} Bb7 {[%clk 01:29:18]} {[%emt 00:00:05]} 4.
O-O {[%clk 01:31:55]} {[%emt 00:00:08]} e6 {[%clk 01:28:33]} {[%emt 00:01:14]}
5. c4 {[%clk 01:32:09]} {[%emt 00:00:17]} c5 {[%clk 01:28:14]} {[%emt
00:00:49]} 6. b3 {[%clk 01:32:16]} {[%emt 00:00:23]} d5 {[%clk 01:26:30]}
{[%emt 00:02:13]} 7. cxd5 {[%clk 01:32:15]} {[%emt 00:00:31]} exd5 {[%clk
01:24:19]} {[%emt 00:02:41]} 8. d4 {[%clk 01:32:36]} {[%emt 00:00:08]} Nbd7
{[%clk 01:22:55]} {[%emt 00:01:55]} 9. Bb2 {[%clk 01:32:35]} {[%emt 00:00:32]}
Be7 {[%clk 01:20:36]} {[%emt 00:02:48]} 10. Nbd2 {[%clk 01:30:23]} {[%emt
00:02:42]} O-O {[%clk 01:13:18]} {[%emt 00:07:48]} 11. Rc1 {[%clk 01:30:49]}
{[%emt 00:00:04]} Rc8 {[%clk 01:12:26]} {[%emt 00:01:22]} 12. Re1 {[%clk
01:30:44]} {[%emt 00:00:34]} Ne4 {[%clk 01:10:59]} {[%emt 00:01:57]} 13. Nxe4
{[%clk 01:15:15]} {[%emt 00:15:59]} dxe4 {[%clk 01:11:13]} {[%emt 00:00:16]} 14.
Ne5 {[%clk 01:15:18]} {[%emt 00:00:26]} Nxe5 {[%clk 01:07:18]} {[%emt
00:04:25]} 15. dxe5 {[%clk 01:15:28]} {[%emt 00:00:20]} Qxd1 {[%clk 01:07:30]}
{[%emt 00:00:19]} 16. Rexd1 {[%clk 01:13:28]} {[%emt 00:02:31]} Rfd8 {[%clk
01:06:55]} {[%emt 00:01:05]} 17. f4 {[%clk 00:47:19]} {[%emt 00:26:39]} exf3
{[%clk 00:58:48]} {[%emt 00:08:36]} 18. Bxf3 {[%clk 00:46:49]} {[%emt
00:01:00]} Ba8 {[%clk 00:54:07]} {[%emt 00:05:10]} 19. Bg4 {[%clk 00:41:26]}
{[%emt 00:05:54]} Rb8 {[%clk 00:53:22]} {[%emt 00:01:15]} 20. e6 {[%clk
00:39:42]} {[%emt 00:02:14]} Bg5 {[%clk 00:45:41]} {[%emt 00:08:10]} 21. exf7+
{[%clk 00:36:53]} {[%emt 00:03:19]} Kxf7 {[%clk 00:43:30]} {[%emt 00:02:42]} 22.
Ra1 {[%clk 00:27:04]} {[%emt 00:10:19]} Be3+ {[%clk 00:41:53]} {[%emt
00:02:06]} 23. Kf1 {[%clk 00:27:03]} {[%emt 00:00:31]} Be4 {[%clk 00:39:06]}
{[%emt 00:03:17]} 24. Be5 {[%clk 00:24:25]} {[%emt 00:03:08]} Ra8 {[%clk
00:37:00]} {[%emt 00:02:36]} 25. Bc7 {[%clk 00:22:09]} {[%emt 00:02:46]} Rd4
{[%clk 00:36:08]} {[%emt 00:01:22]} 26. Be5 {[%clk 00:21:10]} {[%emt 00:01:30]}
Rdd8 {[%clk 00:34:13]} {[%emt 00:02:25]} 27. Bc7 {[%clk 00:15:54]} {[%emt
00:05:45]} Rd4 {[%clk 00:34:36]} {[%emt 00:00:07]} 28. Be5 {[%clk 00:16:15]}
{[%emt 00:00:10]} 1/2-1/2

[Event "Open Gent FIDE-rated 2023"]
[Site "Gent, Belgium"]
[Date "2023.07.18"]
[Round "8.1"]
[White "Decker, Nils"]
[Black "Dreelinck, Adriaan"]
[Result "0-1"]
[TimeControl "90'+30''"]
[WhiteFideId "4699670"]
[WhiteElo "2109"]
[BlackElo "2214"]

1. e4 {[%clk 01:30:56]} {[%emt 00:00:03]} e6 {[%clk 01:30:44]} {[%emt
00:00:16]} 2. d4 {[%clk 01:31:18]} {[%emt 00:00:07]} d5 {[%clk 01:31:10]}
{[%emt 00:00:05]} 3. Nc3 {[%clk 01:31:44]} {[%emt 00:00:04]} Nf6 {[%clk
01:31:24]} {[%emt 00:00:16]} 4. e5 {[%clk 01:32:10]} {[%emt 00:00:05]} Nfd7
{[%clk 01:31:45]} {[%emt 00:00:08]} 5. Nce2 {[%clk 01:32:23]} {[%emt 00:00:17]}
c5 {[%clk 01:32:05]} {[%emt 00:00:10]} 6. c3 {[%clk 01:32:51]} {[%emt
00:00:03]} Nc6 {[%clk 01:32:30]} {[%emt 00:00:05]} 7. f4 {[%clk 01:33:12]}
{[%emt 00:00:09]} Qb6 {[%clk 01:32:14]} {[%emt 00:00:46]} 8. Nf3 {[%clk
01:33:30]} {[%emt 00:00:12]} f6 {[%clk 01:32:13]} {[%emt 00:00:31]} 9. a3
{[%clk 01:27:58]} {[%emt 00:06:02]} Be7 {[%clk 01:32:03]} {[%emt 00:00:39]} 10.
g3 {[%clk 01:26:55]} {[%emt 00:01:33]} O-O {[%clk 01:17:21]} {[%emt 00:15:12]}
11. Bh3 {[%clk 01:21:44]} {[%emt 00:05:41]} cxd4 {[%clk 01:14:06]} {[%emt
00:03:45]} 12. Bxe6+ {[%clk 00:55:12]} {[%emt 00:27:02]} Kh8 {[%clk 01:14:03]}
{[%emt 00:00:33]} 13. exf6 {[%clk 00:55:21]} {[%emt 00:00:22]} Bxf6 {[%clk
00:46:35]} {[%emt 00:27:57]} 14. cxd4 {[%clk 00:45:32]} {[%emt 00:10:19]} Re8
{[%clk 00:45:38]} {[%emt 00:01:26]} 15. Bxd7 {[%clk 00:44:52]} {[%emt
00:01:11]} Bxd7 {[%clk 00:45:45]} {[%emt 00:00:23]} 16. Ne5 {[%clk 00:40:50]}
{[%emt 00:04:32]} Bxe5 {[%clk 00:34:26]} {[%emt 00:11:49]} 17. dxe5 {[%clk
00:34:24]} {[%emt 00:06:56]} Nxe5 {[%clk 00:28:10]} {[%emt 00:06:46]} 18. fxe5
{[%clk 00:30:45]} {[%emt 00:04:09]} Rxe5 {[%clk 00:28:09]} {[%emt 00:00:31]} 19.
Bf4 {[%clk 00:26:43]} {[%emt 00:04:32]} Re4 {[%clk 00:26:25]} {[%emt 00:02:14]}
20. Qxd5 {[%clk 00:20:00]} {[%emt 00:07:14]} Bc6 {[%clk 00:20:52]} {[%emt
00:06:03]} 21. Qg5 {[%clk 00:06:32]} {[%emt 00:13:57]} Qxb2 {[%clk 00:19:30]}
{[%emt 00:01:51]} 22. Qh5 {[%clk 00:00:42]} {[%emt 00:06:20]} Qxa1+ {[%clk
00:19:27]} {[%emt 00:00:34]} 0-1

[Event "Open Gent FIDE-rated 2023"]
[Site "Gent, Belgium"]
[Date "2023.07.18"]
[Round "8.3"]
[White "Ikonnikov, Vyacheslav"]
[Black "Cupido, Alexander"]
[Result "1-0"]
[TimeControl "90'+30''"]
[WhiteTitle "GM"]
[WhiteElo "2467"]
[BlackElo "2084"]

1. d4 {[%clk 01:28:12]} {[%emt 00:02:47]} Nf6 {[%clk 01:30:51]} {[%emt
00:00:10]} 2. Nf3 {[%clk 01:28:27]} {[%emt 00:00:15]} g6 {[%clk 01:30:54]}
{[%emt 00:00:27]} 3. c4 {[%clk 01:28:39]} {[%emt 00:00:19]} c5 {[%clk
01:31:18]} {[%emt 00:00:06]} 4. Nc3 {[%clk 01:28:47]} {[%emt 00:00:22]} cxd4
{[%clk 01:31:34]} {[%emt 00:00:14]} 5. Nxd4 {[%clk 01:29:12]} {[%emt 00:00:05]}
Nc6 {[%clk 01:31:56]} {[%emt 00:00:08]} 6. e4 {[%clk 01:29:31]} {[%emt
00:00:11]} d6 {[%clk 01:29:32]} {[%emt 00:02:54]} 7. Be2 {[%clk 01:29:40]}
{[%emt 00:00:20]} Nxd4 {[%clk 01:29:54]} {[%emt 00:00:09]} 8. Qxd4 {[%clk
01:29:56]} {[%emt 00:00:14]} Bg7 {[%clk 01:30:15]} {[%emt 00:00:08]} 9. Be3
{[%clk 01:29:46]} {[%emt 00:00:40]} O-O {[%clk 01:30:32]} {[%emt 00:00:13]} 10.
Qd2 {[%clk 01:29:15]} {[%emt 00:01:00]} Re8 {[%clk 01:24:15]} {[%emt 00:06:49]}
11. O-O {[%clk 01:27:16]} {[%emt 00:02:28]} Be6 {[%clk 01:24:15]} {[%emt
00:00:31]} 12. f3 {[%clk 01:19:55]} {[%emt 00:07:50]} Qa5 {[%clk 01:20:23]}
{[%emt 00:04:22]} 13. Rfc1 {[%clk 01:14:09]} {[%emt 00:06:16]} Rac8 {[%clk
01:17:24]} {[%emt 00:03:29]} 14. b3 {[%clk 01:14:34]} {[%emt 00:00:05]} Nd7
{[%clk 01:16:25]} {[%emt 00:01:29]} 15. Rab1 {[%clk 01:14:26]} {[%emt
00:00:38]} a6 {[%clk 01:14:43]} {[%emt 00:02:12]} 16. b4 {[%clk 01:08:16]}
{[%emt 00:06:40]} Qc7 {[%clk 01:10:37]} {[%emt 00:04:36]} 17. Nd5 {[%clk
01:02:38]} {[%emt 00:06:07]} Bxd5 {[%clk 01:08:59]} {[%emt 00:02:08]} 18. exd5
{[%clk 01:02:51]} {[%emt 00:00:17]} b6 {[%clk 01:04:08]} {[%emt 00:05:20]} 19.
Bf1 {[%clk 00:58:14]} {[%emt 00:05:06]} e5 {[%clk 00:59:57]} {[%emt 00:04:42]}
20. c5 {[%clk 00:49:36]} {[%emt 00:09:08]} bxc5 {[%clk 00:56:32]} {[%emt
00:03:56]} 21. Bxa6 {[%clk 00:49:59]} {[%emt 00:00:07]} Rb8 {[%clk 00:54:09]}
{[%emt 00:02:52]} 22. a4 {[%clk 00:50:24]} {[%emt 00:00:05]} e4 {[%clk
00:53:54]} {[%emt 00:00:45]} 23. f4 {[%clk 00:48:14]} {[%emt 00:02:39]} Qa7
{[%clk 00:46:43]} {[%emt 00:07:41]} 24. Bb5 {[%clk 00:48:08]} {[%emt 00:00:36]}
Bd4 {[%clk 00:40:09]} {[%emt 00:07:05]} 25. Bc6 {[%clk 00:45:32]} {[%emt
00:03:05]} Re7 {[%clk 00:27:17]} {[%emt 00:13:22]} 26. h3 {[%clk 00:45:14]}
{[%emt 00:00:47]} f5 {[%clk 00:26:52]} {[%emt 00:00:56]} 27. Kh2 {[%clk
00:43:37]} {[%emt 00:02:07]} Nf6 {[%clk 00:24:59]} {[%emt 00:02:23]} 28. bxc5
{[%clk 00:38:47]} {[%emt 00:05:20]} Rxb1 {[%clk 00:22:03]} {[%emt 00:03:26]} 29.
Bxd4 {[%clk 00:17:31]} {[%emt 00:21:45]} e3 {[%clk 00:19:25]} {[%emt 00:03:08]}
30. Bxe3 {[%clk 00:18:00]} {[%emt 00:00:02]} Rxc1 {[%clk 00:19:26]} {[%emt
00:00:30]} 31. Qxc1 {[%clk 00:18:03]} {[%emt 00:00:26]} Re4 {[%clk 00:17:22]}
{[%emt 00:02:33]} 32. Kg3 {[%clk 00:12:15]} {[%emt 00:06:17]} Qe7 {[%clk
00:14:48]} {[%emt 00:03:05]} 33. Kf3 {[%clk 00:12:36]} {[%emt 00:00:09]} Nh5
{[%clk 00:09:24]} {[%emt 00:05:54]} 34. g4 {[%clk 00:11:43]} {[%emt 00:01:24]}
Ng7 {[%clk 00:06:37]} {[%emt 00:03:17]} 35. cxd6 {[%clk 00:11:53]} {[%emt
00:00:20]} Qxd6 {[%clk 00:06:46]} {[%emt 00:00:21]} 36. Bc5 {[%clk 00:11:56]}
{[%emt 00:00:26]} Qb8 {[%clk 00:06:55]} {[%emt 00:00:21]} 37. d6 {[%clk
00:10:56]} {[%emt 00:01:31]} Qb3+ {[%clk 00:06:54]} {[%emt 00:00:32]} 38. Be3
{[%clk 00:11:13]} {[%emt 00:00:11]} Rd4 {[%clk 00:04:24]} {[%emt 00:03:00]} 39.
d7 {[%clk 00:08:12]} {[%emt 00:03:31]} Ne6 {[%clk 00:04:21]} {[%emt 00:00:33]}
40. Bb5 {[%clk 00:06:55]} {[%emt 00:01:47]} Rxf4+ {[%clk 00:03:38]} {[%emt
00:01:13]} 41. Kg2 {[%clk 00:06:44]} {[%emt 00:00:40]} Re4 {[%clk 00:02:11]}
{[%emt 00:01:58]} 42. Bh6 {[%clk 00:06:35]} {[%emt 00:00:39]} Kf7 {[%clk
00:01:34]} {[%emt 00:01:07]} 43. d8=Q {[%clk 00:04:48]} {[%emt 00:02:16]} Nxd8
{[%clk 00:02:02]} {[%emt 00:00:02]} 44. Qc7+ {[%clk 00:05:12]} {[%emt
00:00:06]} Kf6 {[%clk 00:01:32]} {[%emt 00:01:01]} 45. g5+ {[%clk 00:05:10]}
{[%emt 00:00:31]} Ke6 {[%clk 00:01:44]} {[%emt 00:00:17]} 46. Qd7+ {[%clk
00:04:05]} {[%emt 00:01:34]} Ke5 {[%clk 00:02:09]} {[%emt 00:00:06]} 47. Bg7+
{[%clk 00:04:04]} {[%emt 00:00:32]} Kf4 {[%clk 00:02:29]} {[%emt 00:00:10]} 48.
Qc7+ {[%clk 00:03:26]} {[%emt 00:01:07]} Ke3 {[%clk 00:02:51]} {[%emt
00:00:08]} 49. Qc1# {[%clk 00:03:46]} {[%emt 00:00:09]} 1-0